Workbook

Sheet Listă de alimente
M1: =calcule!M9 -> PRODUSE LACTATE TOTAL
B2: Listă de alimente
C3: Terminat | D3: ARTICOL | E3: MAGAZIN | F3: CATEGORIE | G3: CANTITATE | H3: UNITATE | I3: PREȚ UNITAR | J3: TOTAL | K3: COMENTARIU | M3: =calcule!L9 -> 37
C4: 1 | D4: Portocale | E4: Magazin alimentar | F4: Legume și fructe | G4: 2 | H4: kg | I4: 2.99 lei | J4: =IFERROR(Listă[CANTITATE]*Listă[PREȚ UNITAR],"") -> 5.98 lei | M4: =calcule!M8 -> LEGUME ȘI FRUCTE TOTAL
D5: Mere | E5: Livadă | F5: Legume și fructe | G5: 3 | H5: kg | I5: 1.99 lei | J5: =IFERROR(Listă[CANTITATE]*Listă[PREȚ UNITAR],"") -> 5.97 lei | K5: Am voucher | M5: =calcule!L8 -> 45
D6: Banane | E6: Magazin alimentar | F6: Legume și fructe | G6: 1 | H6: mănunchi | I6: 3.99 lei | J6: =IFERROR(Listă[CANTITATE]*Listă[PREȚ UNITAR],"") -> 3.99 lei
D7: Salată verde | E7: Piață | F7: Legume și fructe | G7: 2 | H7: bucată | I7: 2.29 lei | J7: =IFERROR(Listă[CANTITATE]*Listă[PREȚ UNITAR],"") -> 4.58 lei | M7: =calcule!M7 -> CARNE TOTAL
D8: Roșii | E8: Piață | F8: Legume și fructe | G8: 4 | H8: kg | I8: 3.49 lei | J8: =IFERROR(Listă[CANTITATE]*Listă[PREȚ UNITAR],"") -> 13.96 lei | M8: =calcule!L7 -> 80
D9: Dovlecei | E9: Piață | F9: Legume și fructe | G9: 2 | H9: bucată | I9: 1.50 lei | J9: =IFERROR(Listă[CANTITATE]*Listă[PREȚ UNITAR],"") -> 3.00 lei
D10: Țelină | E10: Magazin alimentar | F10: Legume și fructe | G10: 2 | H10: mănunchi | I10: 1.99 lei | J10: =IFERROR(Listă[CANTITATE]*Listă[PREȚ UNITAR],"") -> 3.98 lei | M10: =calcule!M6 -> FRUCTE DE MARE TOTAL
D11: Castraveți | E11: Piață | F11: Legume și fructe | G11: 1 | H11: kg | I11: 2.29 lei | J11: =IFERROR(Listă[CANTITATE]*Listă[PREȚ UNITAR],"") -> 2.29 lei | M11: =calcule!L6 -> 109
D12: Ciuperci | E12: Magazin alimentar | F12: Legume și fructe | G12: 0.5 | H12: kg | I12: 2.25 lei | J12: =IFERROR(Listă[CANTITATE]*Listă[PREȚ UNITAR],"") -> 1.13 lei | K12: Ciuperci mari
D13: Lapte | E13: Livrare la domiciliu | F13: Produse lactate | G13: 2 | H13: litru | I13: 3.99 lei | J13: =IFERROR(Listă[CANTITATE]*Listă[PREȚ UNITAR],"") -> 7.98 lei | M13: =calcule!M3 -> ALTELE TOTAL
D14: Brânză | E14: Livrare la domiciliu | F14: Produse lactate | G14: 1 | H14: kg | I14: 9.99 lei | J14: =IFERROR(Listă[CANTITATE]*Listă[PREȚ UNITAR],"") -> 9.99 lei | K14: Diferite brânzeturi | M14: =calcule!L3 -> 0
D15: Ouă | E15: Livrare la domiciliu | F15: Produse lactate | G15: 2 | H15: duzină | I15: 3.50 lei | J15: =IFERROR(Listă[CANTITATE]*Listă[PREȚ UNITAR],"") -> 7.00 lei
D16: Brânză de vaci | E16: Livrare la domiciliu | F16: Produse lactate | G16: 1 | H16: 500 g | I16: 3.89 lei | J16: =IFERROR(Listă[CANTITATE]*Listă[PREȚ UNITAR],"") -> 3.89 lei | M16: =calcule!M4 -> TOTAL ALIMENTE
D17: Smântână | E17: Livrare la domiciliu | F17: Produse lactate | G17: 1 | H17: 250 g | I17: 2.99 lei | J17: =IFERROR(Listă[CANTITATE]*Listă[PREȚ UNITAR],"") -> 2.99 lei | M17: =TotalAlimente -> 271
D18: Iaurt | E18: Magazin alimentar | F18: Produse lactate | G18: 1 | H18: 500 g | I18: 4.99 lei | J18: =IFERROR(Listă[CANTITATE]*Listă[PREȚ UNITAR],"") -> 4.99 lei | K18: Grecesc, cu miere
D19: Carne de vită | E19: Piață | F19: Carne | G19: 10 | H19: kg | I19: 7.99 lei | J19: =IFERROR(Listă[CANTITATE]*Listă[PREȚ UNITAR],"") -> 79.90 lei | K19: Fileuri cu șuncă
D20: Somon sălbatic | E20: Piața de pește | F20: Fructe de mare | G20: 6 | H20: kg | I20: 8.99 lei | J20: =IFERROR(Listă[CANTITATE]*Listă[PREȚ UNITAR],"") -> 53.94 lei
D21: Picioare de crab regal de Alaska | E21: Piața de pește | F21: Fructe de mare | G21: 5 | H21: kg | I21: 10.99 lei | J21: =IFERROR(Listă[CANTITATE]*Listă[PREȚ UNITAR],"") -> 54.95 lei

Sheet calcule (hidden)
A1: *** Foaie care trebuie să rămână ascunsă ***
K3: =SUM(Listă[TOTAL])-SUM(K6:K9) -> 0.00 lei | L3: =ROUND(K3,0) -> 0 lei | M3: ALTELE TOTAL
L4: =ROUNDUP(SUM(Listă[TOTAL]),0) -> 271 lei | M4: TOTAL ALIMENTE
E6: =IFERROR(INDEX(Listă[CATEGORIE],MATCH(,COUNTIF($E$5:E5,Listă[CATEGORIE]),)),"") -> Legume și fructe | F6: =SUMIFS(Listă[TOTAL],Listă[CATEGORIE],E6) -> 44.875 | G6: =F6+ROW()/1000000 -> 44.875006 | H6: =LARGE($G$6:$G$21,1) -> 108.890009 | I6: =MATCH(H6,$G$6:$G$21,0) -> 4 | J6: =INDEX($E$6:$E$21,$I6) -> Fructe de mare | K6: =INDEX($F$6:$F$21,$I6) -> 108.89 lei | L6: =ROUND(K6,0) -> 109 lei | M6: =UPPER(J6) & " TOTAL" -> FRUCTE DE MARE TOTAL
E7: =IFERROR(INDEX(Listă[CATEGORIE],MATCH(,COUNTIF($E$5:E6,Listă[CATEGORIE]),)),"") -> Produse lactate | F7: =SUMIFS(Listă[TOTAL],Listă[CATEGORIE],E7) -> 36.84 | G7: =F7+ROW()/1000000 -> 36.840007 | H7: =LARGE($G$6:$G$21,2) -> 79.900008 | I7: =MATCH(H7,$G$6:$G$21,0) -> 3 | J7: =INDEX($E$6:$E$21,$I7) -> Carne | K7: =INDEX($F$6:$F$21,$I7) -> 79.90 lei | L7: =ROUND(K7,0) -> 80 lei | M7: =UPPER(J7) & " TOTAL" -> CARNE TOTAL
E8: =IFERROR(INDEX(Listă[CATEGORIE],MATCH(,COUNTIF($E$5:E7,Listă[CATEGORIE]),)),"") -> Carne | F8: =SUMIFS(Listă[TOTAL],Listă[CATEGORIE],E8) -> 79.9 | G8: 79.900008 | H8: =LARGE($G$6:$G$21,3) -> 44.875006 | I8: =MATCH(H8,$G$6:$G$21,0) -> 1 | J8: =INDEX($E$6:$E$21,$I8) -> Legume și fructe | K8: =INDEX($F$6:$F$21,$I8) -> 44.88 lei | L8: =ROUND(K8,0) -> 45 lei | M8: =UPPER(J8) & " TOTAL" -> LEGUME ȘI FRUCTE TOTAL
E9: =IFERROR(INDEX(Listă[CATEGORIE],MATCH(,COUNTIF($E$5:E8,Listă[CATEGORIE]),)),"") -> Fructe de mare | F9: =SUMIFS(Listă[TOTAL],Listă[CATEGORIE],E9) -> 108.89 | G9: 108.890009 | H9: =LARGE($G$6:$G$21,4) -> 36.840007 | I9: =MATCH(H9,$G$6:$G$21,0) -> 2 | J9: =INDEX($E$6:$E$21,$I9) -> Produse lactate | K9: =INDEX($F$6:$F$21,$I9) -> 36.84 lei | L9: =ROUND(K9,0) -> 37 lei | M9: =UPPER(J9) & " TOTAL" -> PRODUSE LACTATE TOTAL
E10: =IFERROR(INDEX(Listă[CATEGORIE],MATCH(,COUNTIF($E$5:E9,Listă[CATEGORIE]),)),"") ->  | F10: =SUMIFS(Listă[TOTAL],Listă[CATEGORIE],E10) -> 0 | G10: 1e-05
E11: =IFERROR(INDEX(Listă[CATEGORIE],MATCH(,COUNTIF($E$5:E10,Listă[CATEGORIE]),)),"") ->  | F11: =SUMIFS(Listă[TOTAL],Listă[CATEGORIE],E11) -> 0 | G11: 1.1e-05
E12: =IFERROR(INDEX(Listă[CATEGORIE],MATCH(,COUNTIF($E$5:E11,Listă[CATEGORIE]),)),"") ->  | F12: =SUMIFS(Listă[TOTAL],Listă[CATEGORIE],E12) -> 0 | G12: 1.2e-05
E13: =IFERROR(INDEX(Listă[CATEGORIE],MATCH(,COUNTIF($E$5:E12,Listă[CATEGORIE]),)),"") ->  | F13: =SUMIFS(Listă[TOTAL],Listă[CATEGORIE],E13) -> 0 | G13: 1.3e-05
E14: =IFERROR(INDEX(Listă[CATEGORIE],MATCH(,COUNTIF($E$5:E13,Listă[CATEGORIE]),)),"") ->  | F14: =SUMIFS(Listă[TOTAL],Listă[CATEGORIE],E14) -> 0 | G14: 1.4e-05
E15: =IFERROR(INDEX(Listă[CATEGORIE],MATCH(,COUNTIF($E$5:E14,Listă[CATEGORIE]),)),"") ->  | F15: =SUMIFS(Listă[TOTAL],Listă[CATEGORIE],E15) -> 0 | G15: 1.5e-05
E16: =IFERROR(INDEX(Listă[CATEGORIE],MATCH(,COUNTIF($E$5:E15,Listă[CATEGORIE]),)),"") ->  | F16: =SUMIFS(Listă[TOTAL],Listă[CATEGORIE],E16) -> 0 | G16: 1.6e-05
E17: =IFERROR(INDEX(Listă[CATEGORIE],MATCH(,COUNTIF($E$5:E16,Listă[CATEGORIE]),)),"") ->  | F17: =SUMIFS(Listă[TOTAL],Listă[CATEGORIE],E17) -> 0 | G17: 1.7e-05
E18: =IFERROR(INDEX(Listă[CATEGORIE],MATCH(,COUNTIF($E$5:E17,Listă[CATEGORIE]),)),"") ->  | F18: =SUMIFS(Listă[TOTAL],Listă[CATEGORIE],E18) -> 0 | G18: 1.8e-05
E19: =IFERROR(INDEX(Listă[CATEGORIE],MATCH(,COUNTIF($E$5:E18,Listă[CATEGORIE]),)),"") ->  | F19: =SUMIFS(Listă[TOTAL],Listă[CATEGORIE],E19) -> 0 | G19: 1.9e-05
E20: =IFERROR(INDEX(Listă[CATEGORIE],MATCH(,COUNTIF($E$5:E19,Listă[CATEGORIE]),)),"") ->  | F20: =SUMIFS(Listă[TOTAL],Listă[CATEGORIE],E20) -> 0 | G20: 2e-05
E21: =IFERROR(INDEX(Listă[CATEGORIE],MATCH(,COUNTIF($E$5:E20,Listă[CATEGORIE]),)),"") ->  | F21: =SUMIFS(Listă[TOTAL],Listă[CATEGORIE],E21) -> 0 | G21: 2.1e-05
